Cogmind - Beta 14 @@@ ROGUE MODE // 2025.01.04 @ 18:03:30 Player: LightKnight Result: Destroyed by QH-VWV(R) with Subdweller Beam Cannon Performance ------------- Evolutions (0) 0 Regions Visited (3) 600 Robots Destroyed (26) 130 Value Destroyed (614) 614 Prototype IDs (0) 0 Alien Tech Used (0) 0 Bonus (0) 0 TOTAL SCORE: 1344 Bonus ------- None Cogmind --------- Core Integrity 0/250 Matter 255/300 Energy 200/200 System Corruption 0% Temperature Cool (34) Movement Walking (260) Ox2 Location -10/Subcaves Parts ------- > --- POWER (1) -------- Subdweller Power Source > --- PROPULSION (2) --- Aluminum Leg Aluminum Leg > --- UTILITY (2) ------ High-capacity Storage Unit > --- WEAPON (2) ------- Particle Gun Beam Cannon > --- INVENTORY (20) --- Ion Engine Light Ion Engine Light Ion Engine Light Nuclear Core Subdweller Monowheel Heat Sink Disposable Heat Sink High-capacity Matter Pod (200) Signal Interpreter Tractor Beam EM Pulse Gun Subdweller Laser Assault Rifle Light Assault Rifle Dirty Datajack (20) Mining Laser Flamer Shrapnel Trap Peak State ------------ > --- POWER ------------ Subdweller Power Source > --- PROPULSION ------- Aluminum Leg Aluminum Leg > --- UTILITY ---------- High-capacity Storage Unit Signal Interpreter > --- WEAPON ----------- Subdweller Laser Light Assault Rifle > --- INVENTORY -------- Ion Engine Light Ion Engine Light Ion Engine Light Nuclear Core Aluminum Leg Subdweller Monowheel Heat Sink Disposable Heat Sink High-capacity Matter Pod Signal Interpreter Tractor Beam EM Pulse Gun Particle Gun Beam Cannon Assault Rifle Dirty Datajack Datajack Mining Laser Flamer Shrapnel Trap [Rating: 12] Favorites ----------- Power Light Nuclear Core Engine Light Ion Engine Power Core Light Nuclear Core Propulsion Light Treads Treads Light Treads Leg Aluminum Leg Utility High-capacity Storage Unit Device Tractor Beam Storage High-capacity Storage Unit Processor Signal Interpreter Weapon Assault Rifle Energy Gun Particle Gun Energy Cannon Beam Cannon Ballistic Gun Assault Rifle Ballistic Cannon Light Cannon Special Weapon Mining Laser Build | -11 -10 -10 -10 ------- Run | Yrd Mat Min Sub Slots Evolved . | . . . . Power . | . . . . Propulsion . | . . . . Utility . | . . . . Weapon . | . . . . Parts Attached 20 | 3 3 2 12 Power 3 | . 1 1 1 Engine 2 | . 1 . 1 Core 1 | . . 1 . Reactor . | . . . . Propulsion 5 | 2 . . 3 Treads 2 | 2 . . . Leg 3 | . . . 3 Wheel . | . . . . Hover . | . . . . Flight . | . . . . Utility 3 | 1 1 1 . Device 1 | 1 . . . Storage 1 | . 1 . . Processor 1 | . . 1 . Hackware . | . . . . Protection . | . . . . Artifact . | . . . . Weapon 9 | . 1 . 8 Energy Gun 4 | . . . 4 Energy Cannon 1 | . . . 1 Ballistic Gun 2 | . . . 2 Ballistic Cannon 1 | . 1 . . Launcher . | . . . . Special Weapon 1 | . . . 1 Impact Weapon . | . . . . Slashing Weapon . | . . . . Piercing Weapon . | . . . . Special Melee Weapon . | . . . . Unidentified Prototypes . | . . . . Parts Lost 5 | . . . 5 Power . | . . . . Propulsion 3 | . . . 3 Utility 1 | . . . 1 Weapon 1 | . . . 1 Highest Loss Streak 3 | . . . 3 To Critical Strikes . | . . . . Average Slot Usage (%) 99 | . 100 100 98 Engine 7 | . 14 5 5 Core 6 | . . 8 8 Treads 23 | . 28 28 14 Leg 4 | . . . 12 Device 3 | . 14 1 . Storage 14 | . 14 14 14 Processor 10 | . . 12 13 Energy Gun 1 | . . . 5 Energy Cannon 1 | . . . 4 Ballistic Gun 12 | . 14 14 9 Ballistic Cannon 11 | . 13 14 7 Peak Build Rating 12 | 7 8 10 12 Average Rating 9 | 6 7 9 10 On Entrance 7 | 6 7 8 10 Naked Turns . | . . . . Heaviest Build 51 | 12 51 51 51 Greatest Support 40 | 40 40 40 40 Greatest Overweight (x) 2 | . 1 1 2 Average Overweight (x) 1 | . . 1 1 Largest Inventory Capacity 20 | 8 20 20 20 Average Capacity 19 | 8 17 20 20 Most Carried 20 | 6 14 18 20 Average Carried 15 | 6 9 17 18 Final Capacity 20 | 8 20 20 20 Final Carried 18 | 6 14 18 18 Class Distribution -------------------- 100% | Mutant Dominant Class ---------------- Mutant | -10/Materials Mutant | -10/Mines Mutant | -10/Subcaves Resources | -11 -10 -10 -10 ----------- Run | Yrd Mat Min Sub Matter Collected 955 | 246 132 384 193 Remotely 265 | 30 132 103 . Salvage Created 683 | 94 164 183 242 Parts 54 | 2 14 21 17 Haulers Intercepted . | . . . . Recyclers Shooed . | . . . . Parts Field Recycled . | . . . . Retrieved Matter . | . . . . Parts Self-Destructed 13 | . . . 13 Prevented . | . . . . Kills | -11 -10 -10 -10 ------- Run | Yrd Mat Min Sub Combat Hostiles Destroyed 23 | . 6 11 6 Guns 9 | . 2 4 3 Cannons 14 | . 4 7 3 Classes Destroyed 6 | 1 3 . 2 Recycler 1 | 1 . . . Watcher 2 | . 2 . . Swarmer 12 | . 3 9 . Grunt 8 | . 3 2 3 Sentry 1 | . . . 1 Subdweller 2 | . . . 2 Best Kill Streak 4 | 1 4 3 4 Combat Bots Only 4 | . 3 3 4 Max Kills in Single Turn 2 | 1 1 2 1 Gunslinging . | . . . . Exploded . | . . . . Melee . | . . . . Uniques/NPCs Destroyed . | . . . . Combat | -11 -10 -10 -10 -------- Run | Yrd Mat Min Sub Hostile Shots Fired 126 | . 32 46 48 Missed 45 | . 10 18 17 Damage Taken 1150 | . 189 246 715 Core 263 | . 7 80 176 Absorbed by Shields . | . . . . Core Remaining (%) 100 | 100 . . . Volleys Fired 80 | 4 16 24 36 Largest 2 | 2 2 2 2 Hottest 125 | 40 55 55 125 Shots Fired 153 | 8 32 48 65 Gun 84 | 8 16 24 36 Cannon 66 | . 16 24 26 Launcher . | . . . . Special 3 | . . . 3 Kinetic 128 | 8 32 48 40 Thermal 25 | . . . 25 Explosive . | . . . . Electromagnetic . | . . . . Robot Hit Streak 10 | 7 10 4 10 Robot Miss Streak 4 | . 4 3 3 Penetration Max . | . . . . Secondary Targets . | . . . . Shots Hit Robots 91 | 7 15 23 46 Core Hits 38 | 2 10 13 13 Critical Kills 1 | . . . 1 Critical Parts Destroyed . | . . . . Critical Strikes 2 | . . 1 1 Destroy 1 | . . . 1 Blast 1 | . . 1 . Melee Attacks . | . . . . Impact . | . . . . Slashing . | . . . . Piercing . | . . . . Sneak Attacks . | . . . . Combat Hostiles . | . . . . Follow-up Attacks . | . . . . Damage Inflicted 1255 | 69 237 370 579 Guns 613 | 69 99 168 277 Cannons 642 | . 138 202 302 Explosions . | . . . . Melee . | . . . . Ramming . | . . . . Kinetic 1076 | 69 237 370 400 Thermal 179 | . . . 179 Explosive . | . . . . Electromagnetic . | . . . . Impact . | . . . . Slashing . | . . . . Piercing . | . . . . Highest Corruption . | . . . . Average Corruption . | . . . . Corruption Purged . | . . . . Corruption Blocked . | . . . . Overload Shots . | . . . . Overflow Damage . | . . . . Projectiles . | . . . . Explosions . | . . . . Melee . | . . . . Knockbacks 3 | . . 3 . Impact . | . . . . Kinetic 3 | . . 3 . Secondary . | . . . . Self-Inflicted Damage . | . . . . Shots . | . . . . Rammed . | . . . . Targets Rammed . | . . . . Kicked . | . . . . Crushed . | . . . . Highest Temperature 57 | . 7 13 57 Average Temperature 16 | . 3 7 23 Received Heat Transfer 297 | . 27 33 237 Siege Activations . | . . . . Robots Corrupted . | . . . . Combat Hostiles . | . . . . Parts Fried . | . . . . Impact Corruptions . | . . . . Robots Melted . | . . . . Combat Hostiles . | . . . . Parts Melted . | . . . . Heat Transferred 407 | . . . 407 Parts Sabotaged . | . . . . Parts Stolen . | . . . . Parts Stripped . | . . . . Power Chain Reactions . | . . . . Alert | -11 -10 -10 -10 ------- Run | Yrd Mat Min Sub Peak Influence 227 | 5 227 150 . Initial 10 | . 3 10 . Average 62 | 3 90 52 . Maximum Alert Level 1 | . 1 . . Low Security (%) 95 | 100 84 100 . Level 1 4 | . 15 . . Level 2 . | . . . . Level 3 . | . . . . Level 4 . | . . . . Level 5 . | . . . . High Security . | . . . . Max Security . | . . . . Squads Dispatched 1 | . 1 . . Investigation . | . . . . Extermination . | . . . . Reinforcement 1 | . 1 . . Assault . | . . . . Garrison . | . . . . Intercept . | . . . . Searches Triggered . | . . . . Construction Impeded . | . . . . Haulers Reinforced . | . . . . Active Scanning Responses . | . . . . Cargo Convoy Interrupts . | . . . . Stealth | -11 -10 -10 -10 --------- Run | Yrd Mat Min Sub Distress Signals 2 | . 2 . . Communications Jammed . | . . . . Distress Signals . | . . . . Times Spotted 28 | . 10 11 7 Peak Tracking Total 5 | . 5 3 2 Tactical Retreats 1 | . . 1 . Traps | -11 -10 -10 -10 ------- Run | Yrd Mat Min Sub Traps Triggered . | . . . . Indirectly . | . . . . Trap Hack Attempts . | . . . . Triggered . | . . . . Disarmed . | . . . . Reprogrammed . | . . . . Reused . | . . . . Traps Extracted . | . . . . Installed . | . . . . Triggered . | . . . . Most Traps Carried 1 | . . . 1 Machines | -11 -10 -10 -10 ---------- Run | Yrd Mat Min Sub Machines Disabled 2 | . 2 . . Max in Single Turn 1 | . 1 . . Machines Repaired . | . . . . Machines Dismantled . | . . . . Machines Sabotaged . | . . . . Overloaded Fab Kills . | . . . . Hacking | -11 -10 -10 -10 --------- Run | Yrd Mat Min Sub Machines Accessed . | . . . . Terminals . | . . . . Fabricators . | . . . . Repair Stations . | . . . . Recycling Units . | . . . . Scanalyzers . | . . . . Garrison Access . | . . . . Total Hacks . | . . . . Successful . | . . . . Failed . | . . . . Catastrophic . | . . . . Database Lockouts . | . . . . Manual . | . . . . Terminals . | . . . . Fabricators . | . . . . Repair Stations . | . . . . Recycling Units . | . . . . Scanalyzers . | . . . . Garrison Access . | . . . . Terminal Hacks . | . . . . Fabricator Hacks . | . . . . Repair Station Hacks . | . . . . Recycling Unit Hacks . | . . . . Scanalyzer . | . . . . Garrison Access Hacks . | . . . . Unauthorized Hacks . | . . . . Terminals . | . . . . Fabricators . | . . . . Repair Stations . | . . . . Recycling Units . | . . . . Scanalyzers . | . . . . Garrison Access . | . . . . Data Cores Recovered . | . . . . Used . | . . . . Hacking Detections . | . . . . Full Trace Events . | . . . . Feedback Events . | . . . . Feedback Blocked . | . . . . Robot Schematics Acquired . | . . . . Robots Built . | . . . . Authchips . | . . . . Time . | . . . . Total Robot Build Rating . | . . . . Part Schematics Acquired . | . . . . Parts Built . | . . . . Authchips . | . . . . Time . | . . . . Total Part Build Rating . | . . . . Parts Repaired . | . . . . Time . | . . . . Parts Recycled . | . . . . Recycled Matter . | . . . . Retrieved Matter . | . . . . Retrieved Components . | . . . . Parts Scanalyzed . | . . . . Part Schematics Acquired . | . . . . Parts Damaged . | . . . . Bothacking | -11 -10 -10 -10 ------------ Run | Yrd Mat Min Sub Used RIF Installer . | . . . . Robots Hacked . | . . . . Non-combat . | . . . . Combat . | . . . . Robot Hacks Applied . | . . . . Relay Couplers Released . | . . . . Fabnet Peak Effective % . | . . . . Robots Rewired . | . . . . Allies Hacked . | . . . . Hacks Repelled . | . . . . Allies | -11 -10 -10 -10 -------- Run | Yrd Mat Min Sub Total Allies . | . . . . Largest Group . | . . . . Highest-Rated Group . | . . . . Highest-Rated Ally . | . . . . Total Orders . | . . . . Ally Attacks . | . . . . Total Damage . | . . . . Kills . | . . . . Allies Corrupted . | . . . . Allies Melted . | . . . . Intel | -11 -10 -10 -10 ------- Run | Yrd Mat Min Sub Robot Analysis Total . | . . . . Derelict Logs Recovered 3 | . . 2 1 Drone Launches . | . . . . Drone Recoveries . | . . . . Exploration | -11 -10 -10 -10 ------------- Run | Yrd Mat Min Sub Turns Passed 2548 | 61 545 1159 783 Spaces Moved 956 | 33 220 441 262 Core . | . . . . Treads 818 | 16 220 441 141 Legs 138 | 17 . . 121 Wheels . | . . . . Hover . | . . . . Flight . | . . . . Fastest Speed 120 | 120 160 240 240 Average Speed 234 | 139 219 240 249 Slowest Speed 260 | 160 240 240 260 Overloaded Moves . | . . . . Propulsion Burnouts . | . . . . Robots Hopped . | . . . . Cave-ins Triggered . | . . . . Exploration Rate (%) 36 | 4 39 81 22 Regions Visited 3 Branch Regions 2 Pre-discovered Areas . | . . . . Known Exits Taken 1 | . . 1 . Unknown Exits Taken 2 | 1 1 . . Scrap Searched 2 | . . 2 . Spaces Dug . | . . . . Terrain Destroyed . | . . . . Melee . | . . . . Projectile . | . . . . AOE . | . . . . Terrain Rammed . | . . . . Walls Destroyed . | . . . . Machines Disabled . | . . . . Actions | -11 -10 -10 -10 --------- Run | Yrd Mat Min Sub Total 1105 | 39 252 494 320 Wait 27 | . 2 25 . Move 953 | 32 219 440 262 Hop . | . . . . Pick Up 19 | . 9 3 7 Fast Attach 1 | 1 . . . Attach 4 | . . . 4 Detach . | . . . . Swap 15 | 2 3 2 8 Drop 6 | . 3 . 3 Fire 80 | 4 16 24 36 Melee . | . . . . Ram . | . . . . Kick . | . . . . Crush . | . . . . Escape Stasis . | . . . . Rewire . | . . . . Trap . | . . . . Miscellaneous . | . . . . Route ------- -11/Scrapyard -10/Materials -10/Mines (discovered 3 exits: *Mat x2 / *Sub) -10/Subcaves (discovered 1 exit: *Mat) History --------- Turn | Location | Event 1 | -11/Scrapyard | Discovered new exit (range 3) 62 | -11/Scrapyard | Entered Materials 318 | -10/Materials | Build established: Mutant 564 | -10/Materials | Discovered new exit (range 11) 607 | -10/Materials | Entered Mines 704 | -10/Mines | Discovered new exit (range 7) 719 | -10/Mines | Identified exit to Materials 987 | -10/Mines | Discovered exit to Materials (range 11) 1282 | -10/Mines | Learned Materials emergency access door positions 1466 | -10/Mines | Learned Materials emergency access door positions 1745 | -10/Mines | Discovered new exit (range 8) 1764 | -10/Mines | Identified exit to Subcaves 1766 | -10/Mines | Entered Subcaves 1771 | -10/Subcaves | Identified exit to Materials 1940 | -10/Subcaves | Shifting Twisted Machinery released Flamer 1989 | -10/Subcaves | Shifting Twisted Machinery released Shrapnel Trap 2159 | -10/Subcaves | Core integrity fell below 50% 2197 | -10/Subcaves | Lost 3 parts (2n1w) 2300 | -10/Subcaves | A swath of the cavern ceiling suddenly collapsed 2528 | -10/Subcaves | Core integrity fell below 20% 2549 | -10/Subcaves | Destroyed by QH-VWV(R) with Subdweller Beam Cannon Last Messages --------------- 02239_ Acquired Sub. Laser. 02241_ Acquired Assault Rifle. 02242_ Subatomizers dissect the Sub. Monowheel. 02247_ Acquired Sub. Monowheel. 02248_ Acquired 8 matter. 02250_ Acquired 26 matter. 02253_ Acquired 3 matter. 02256_ Subatomizers dissect the Disposable Heat Sink. 02256_ Acquired 2 matter. 02266_ Acquired 10 matter. 02267_ Subatomizers dissect the Disposable Heat Sink. 02276_ Acquired Disposable Heat Sink. 02284_ Dropped Datajack. A swath of the cavern ceiling suddenly collapses. 02314_ Acquired 8 matter. 02518_ Signal Interpreter destroyed. 02539_ Aluminum Leg destroyed. Map ----- +----------------------------------------------------+ | ?????????????????????????????????????????????????? | | ?????????????????????????????????????????????????? | | ?????????????????????????????????????????????????? | | ?????????????????????????????????????????????????? | | ?????????????????????????????????????????????????? | | ?????????????????????????????????????????????????? | | ?????????????????????????????????????????????????? | | ?????????????????????????????????????????????????? | | ?????????????????????????????????????????????????? | | ?????????????????????????????????????????????????? | | ?????????????????????????????????????????????????? | | ?????????????????????????????????????????????????? | | ?????????????????????????????????????????????????? | | ?????????????????????????????????????????????????? | | ?????????????????????????????????????????????????? | | ????????????????????????????? ???????????????????? | | ????????????????????????????? ??????????????????? | | ????????????????????????????? " ????????????????? | | ?????????????????????????????"""?????????????????? | | ????????????????????????????? "?????????????????? | | ?????????????????????????????=""?????????????????? | | ????????????????????????#####"#??????????????????? | | ???????????????????????## #R ##?????????????????? | | ??????????????????????## ##????????????????? | | ??????????????????????# #????????????????? | | ??????????????????????# @ #????????????????? | | ??????????????????????## ##????????????????? | | ???????????????????????##; ###?????????????????? | | ??????????????# ????????## #???????????????????# | | ?????????????? ????????# ##????????????####### | | ?????????????# ##?????## #????####????#"## ## | | ?????????????? #????## ##?## #????##""#"" | | ?????????????# #?### ### #?????#""#""# | | ?????????????? ## #?????####"## | | ???????????????????# ##??????""### | | ??????????????????## ## ##????###?## | | ??????????????????# ### #????????#" | | ????????????????# ### #?# #????????#" | | ????????????????# ???# #? #????????# | | ??????????????????????## ### #????????# | | ???????????????????????## ## ##????##### | | ????????????????????????## #& #?????# | | ?????????????????????????# " #?????## | | ?????????????????????????# """ #??????## | | ?????????????????????????## ####??????## | | ??????????????????????????## "" #?????##?## | | ???????????????????????????# " ##?????# ## | | ???????????????????????????# #### #####?# | | ???????????????????? ### #### # | | ???????????????????? #?# # | +----------------------------------------------------+ Best States ------------- Heat Dissipation 25 Energy Generation 15 Energy Capacity 250 Matter Stores 300 Matter Capacity 300 Sight Range 16 Terrain Scan Density 10 Evasion (%) 45 Recoil Reduction 2 Item Schematics ----------------- None Robot Schematics ------------------ None Fabricated ------------ Nothing Alien Tech Used ----------------- None Achievements -------------- None Challenges ------------ None Game ------ Seed LongswordTachyonExtrapolator Manual? 0 Play Time 00:17:29 Cumulative 85.3 hours Start 2025.01.04 @ 17:49:10 End 2025.01.04 @ 18:03:30 Sessions 1 Manual Loads 0 Difficulty Rogue Special Mode None Game No. 71 Rogue 71 Adventurer 0 Explorer 0 Win Type - Total 1 Types 1/0/0/0/0/0/0/0/0 Lore% 36 Gallery% 47 Achievement% 35 Wizard Run 0 Options --------- Layout 2 ASCII 0 Keyboard 1 Movement Arrows Keybinds 0 Fullscreen 1 Font 24/Proggy Map View 50x44 Zoom Use 0% Tactical HUD 1 Map Filters NONE Filters NONE Steam 1 RUN: 6682b44c-b8e8-4d05-af21-63c502eafe30